Cogmind - Beta 13 @@@ ROGUE MODE // 2024.05.23 @ 18:24:39 Player: Sunsh1n3 Result: Destroyed by X-67 Chaingunner with Heavy Machine Gun Performance ------------- Evolutions (3) 1500 Regions Visited (6) 1200 Robots Destroyed (43) 215 Value Destroyed (1661) 1661 Prototype IDs (2) 40 Alien Tech Used (0) 0 Bonus (93) 93 TOTAL SCORE: 4709 Bonus ------- Follower Combat Kills 93 Cogmind --------- Core Integrity 0/700 Matter 260/300 Energy 93/100 System Corruption 3% Temperature Cool (0) Movement Core (1350) Ox26 Location -7/Factory Parts ------- > --- POWER (1) -------- (None) > --- PROPULSION (4) --- (None) > --- UTILITY (6) ------ Huge Storage Unit Advanced Targeting Computer Graphene Brace Hacking Suite > --- WEAPON (2) ------- (None) > --- INVENTORY (25) --- Improved Deuterium Engine Improved Heat Sink Active Sensor Suite Recoil Stabilizer Weapon Cycler ECM Suite Plasma Cannon Peak State ------------ > --- POWER ------------ Improved Deuterium Engine > --- PROPULSION ------- Armored Treads Advanced Treads Advanced Treads Medium Treads > --- UTILITY ---------- Advanced Heat Sink Huge Storage Unit Medium Matter Pod Advanced Targeting Computer Graphene Brace Hacking Suite > --- WEAPON ----------- Gatling Laser Gauss Cannon > --- INVENTORY -------- Improved Deuterium Engine Aluminum Leg Improved Heat Sink Active Sensor Suite Recoil Stabilizer Weapon Cycler ECM Suite Gatling Laser Plasma Cannon High-powered Shotgun Advanced Assault Cannon Missile Launcher [Rating: 51] Favorites ----------- Power Light Angular Momentum Engine Engine Light Angular Momentum Engine Power Core Light Nuclear Core Propulsion Aluminum Leg Treads Advanced Treads Leg Aluminum Leg Flight Unit Improved Flight Unit Utility Hacking Suite Device ECM Suite Storage Medium Matter Pod Processor Improved Signal Interpreter Hackware Hacking Suite Weapon Autogun Energy Gun Gatling Laser Ballistic Gun Autogun Ballistic Cannon Gauss Cannon Launcher Missile Launcher Build | -11 -10 -10 -9 -9 -8 -7 ------- Run | Yrd Mat Min Mat Min Mat Fac Slots Evolved 6 | . . . 2 . 2 2 Power . | . . . . . . . Propulsion 2 | . . . 2 . . . Utility 4 | . . . . . 2 2 Weapon . | . . . . . . . Parts Attached 64 | 6 5 . 10 . 18 25 Power 7 | 1 . . 2 . 2 2 Engine 5 | 1 . . 1 . 1 2 Core 2 | . . . 1 . 1 . Reactor . | . . . . . . . Propulsion 25 | 2 2 . 5 . 10 6 Treads 4 | . . . . . . 4 Leg 20 | 2 2 . 4 . 10 2 Wheel . | . . . . . . . Hover . | . . . . . . . Flight 1 | . . . 1 . . . Utility 14 | 1 1 . . . 4 8 Device 6 | . 1 . . . . 5 Storage 5 | 1 . . . . 3 1 Processor 2 | . . . . . . 2 Hackware 1 | . . . . . 1 . Protection . | . . . . . . . Artifact . | . . . . . . . Weapon 18 | 2 2 . 3 . 2 9 Energy Gun 5 | 1 . . . . 1 3 Energy Cannon . | . . . . . . . Ballistic Gun 8 | 1 2 . 3 . 1 1 Ballistic Cannon 3 | . . . . . . 3 Launcher 2 | . . . . . . 2 Special Weapon . | . . . . . . . Impact Weapon . | . . . . . . . Slashing Weapon . | . . . . . . . Piercing Weapon . | . . . . . . . Special Melee Weapon . | . . . . . . . Unidentified Prototypes 2 | . . . 2 . . . Parts Lost 26 | . . . 1 . 2 23 Power 3 | . . . . . 1 2 Propulsion 11 | . . . 1 . 1 9 Utility 4 | . . . . . . 4 Weapon 8 | . . . . . . 8 Highest Loss Streak 14 | . . . 1 . 1 14 To Critical Strikes . | . . . . . . . Average Slot Usage (%) 94 | . 96 100 92 100 99 91 Engine 8 | . 14 14 9 11 8 6 Treads 6 | . . . . . . 13 Leg 23 | . 28 28 37 44 35 10 Device 11 | . 10 14 11 11 9 13 Storage 14 | . 14 14 11 11 18 14 Processor 3 | . . . . . . 7 Hackware 5 | . . . . . 9 7 Energy Gun 3 | . . . . . 2 6 Ballistic Gun 11 | . 27 28 22 22 15 . Ballistic Cannon 2 | . . . . . . 5 Naked Turns . | . . . . . . . Heaviest Build 105 | 11 16 16 22 22 39 105 Greatest Support 92 | 20 20 20 40 40 55 92 Greatest Overweight (x) 26 | . 1 . . . . 26 Average Overweight (x) . | . . . . . . . Largest Inventory Capacity 25 | 8 8 8 8 8 15 25 Average Capacity 13 | 7 8 8 8 8 12 17 Most Carried 16 | 5 8 8 8 8 15 16 Average Carried 11 | 3 7 8 7 8 11 14 Final Capacity 25 | 8 8 8 8 8 15 25 Final Carried 15 | 4 8 8 8 8 15 9 Class Distribution -------------------- 50% | Mutant 49% | Scavenger-Mutant Dominant Class ---------------- Mutant | -10/Materials Mutant | -10/Mines Mutant | -9/Materials Scavenger-Mutant | -9/Mines Scavenger-Mutant | -8/Materials Mutant | -7/Factory Resources | -11 -10 -10 -9 -9 -8 -7 ----------- Run | Yrd Mat Min Mat Min Mat Fac Matter Collected 1624 | 190 105 23 301 26 597 382 Remotely . | . . . . . . . Salvage Created 1728 | . 177 . 137 . 851 563 Parts 94 | . 15 . 11 . 44 24 Haulers Intercepted 2 | . . . 1 . 1 . Recyclers Shooed 2 | . . . . . 1 1 Parts Field Recycled . | . . . . . . . Retrieved Matter . | . . . . . . . Parts Self-Destructed . | . . . . . . . Prevented . | . . . . . . . Kills | -11 -10 -10 -9 -9 -8 -7 ------- Run | Yrd Mat Min Mat Min Mat Fac Combat Hostiles Destroyed 33 | . 6 . 1 . 15 11 Guns 26 | . 6 . 1 . 15 4 Cannons 4 | . . . . . . 4 AOE 3 | . . . . . . 3 Classes Destroyed 12 | . 3 . 3 . . 6 Worker 2 | . . . . . . 2 Hauler 2 | . . . 1 . 1 . Recycler 1 | . . . . . . 1 Operator 1 | . . . 1 . . . Watcher 4 | . 1 . 1 . 1 1 Swarmer 3 | . 3 . . . . . Grunt 17 | . 3 . . . 11 3 Sentry 6 | . . . 1 . 4 1 Specialist 1 | . . . . . . 1 Hunter 2 | . . . . . . 2 Programmer 3 | . . . . . . 3 Heavy 1 | . . . . . . 1 Best Kill Streak 4 | . 3 . 2 . 4 3 Combat Bots Only 4 | . 3 . 1 . 4 3 Max Kills in Single Turn 1 | . 1 . 1 . 1 1 Gunslinging . | . . . . . . . Exploded 1 | . . . . . . 1 Melee . | . . . . . . . Uniques/NPCs Destroyed . | . . . . . . . Combat | -11 -10 -10 -9 -9 -8 -7 -------- Run | Yrd Mat Min Mat Min Mat Fac Hostile Shots Fired 334 | . 19 . 6 . 78 231 Missed 104 | . 9 . 3 . 22 70 Damage Taken 4301 | . 111 . 43 . 885 3262 Core 876 | . 13 . 14 . 142 707 Absorbed by Shields . | . . . . . . . Regen/Repaired (Parts) 23 | . . . . . . 23 Core Remaining (%) 91 | 100 . 94 . 96 74 . Volleys Fired 144 | . 20 . 9 . 61 54 Largest 2 | . 2 . 2 . 2 2 Hottest 128 | . 46 . 46 . 79 128 Shots Fired 281 | . 40 . 18 . 122 101 Gun 238 | . 40 . 18 . 122 58 Cannon 34 | . . . . . . 34 Launcher 9 | . . . . . . 9 Special . | . . . . . . . Kinetic 212 | . 40 . 18 . 108 46 Thermal 60 | . . . . . 14 46 Explosive 9 | . . . . . . 9 Electromagnetic . | . . . . . . . Robot Hit Streak 19 | . 5 . 8 . 13 19 Robot Miss Streak 5 | . 4 . 5 . 4 4 Penetration Max . | . . . . . . . Secondary Targets . | . . . . . . . Shots Hit Robots 186 | . 21 . 10 . 81 74 Core Hits 103 | . 9 . 5 . 39 50 Critical Kills . | . . . . . . . Critical Parts Destroyed 1 | . . . . . 1 . Critical Strikes 3 | . . . . . 2 1 Burn 1 | . . . . . 1 . Destroy 1 | . . . . . 1 . Blast 1 | . . . . . . 1 Melee Attacks . | . . . . . . . Impact . | . . . . . . . Slashing . | . . . . . . . Piercing . | . . . . . . . Sneak Attacks . | . . . . . . . Combat Hostiles . | . . . . . . . Follow-up Attacks . | . . . . . . . Damage Inflicted 4142 | . 324 . 165 . 1230 2423 Guns 2599 | . 324 . 165 . 1230 880 Cannons 496 | . . . . . . 496 Explosions 1047 | . . . . . . 1047 Melee . | . . . . . . . Ramming . | . . . . . . . Kinetic 2206 | . 324 . 165 . 1088 629 Thermal 889 | . . . . . 142 747 Explosive 1047 | . . . . . . 1047 Electromagnetic . | . . . . . . . Impact . | . . . . . . . Slashing . | . . . . . . . Piercing . | . . . . . . . Highest Corruption 3 | . . . . . . 3 Average Corruption 1 | . . . . . . 1 Corruption Purged . | . . . . . . . Corruption Blocked . | . . . . . . . Effects 3 | . . . . . . 3 Message Errors 1 | . . . . . . 1 Energy Discharges 1 | . . . . . . 1 Data Loss (minor) 1 | . . . . . . 1 Overload Shots . | . . . . . . . Overflow Damage 17 | . . . . . . 17 Projectiles 17 | . . . . . . 17 Explosions . | . . . . . . . Melee . | . . . . . . . Knockbacks 5 | . . . . . . 5 Impact . | . . . . . . . Kinetic 5 | . . . . . . 5 Secondary . | . . . . . . . Self-Inflicted Damage 82 | . . . . . . 82 Shots 3 | . . . . . . 3 Rammed . | . . . . . . . Targets Rammed . | . . . . . . . Kicked . | . . . . . . . Crushed . | . . . . . . . Highest Temperature 213 | . 31 . 13 . 213 24 Average Temperature 36 | . 8 . 5 . 75 7 Received Heat Transfer 609 | . 36 . 9 . 441 123 Siege Activations . | . . . . . . . Robots Corrupted . | . . . . . . . Combat Hostiles . | . . . . . . . Parts Fried . | . . . . . . . Impact Corruptions . | . . . . . . . Robots Melted . | . . . . . . . Combat Hostiles . | . . . . . . . Parts Melted 3 | . . . . . . 3 Heat Transferred 2001 | . . . . . 444 1557 Parts Sabotaged . | . . . . . . . Parts Stolen . | . . . . . . . Parts Stripped . | . . . . . . . Power Chain Reactions . | . . . . . . . Alert | -11 -10 -10 -9 -9 -8 -7 ------- Run | Yrd Mat Min Mat Min Mat Fac Peak Influence 375 | . 174 67 179 . 375 175 Initial 154 | . . 67 26 . . 154 Average 103 | . 66 67 96 . 208 71 Maximum Alert Level 1 | . . . . . 1 . Low Security (%) 85 | 100 100 100 100 100 38 100 Level 1 14 | . . . . . 61 . Level 2 . | . . . . . . . Level 3 . | . . . . . . . Level 4 . | . . . . . . . Level 5 . | . . . . . . . High Security . | . . . . . . . Max Security . | . . . . . . . Squads Dispatched 7 | . 1 . 1 . 2 3 Investigation 3 | . 1 . 1 . 1 . Extermination 1 | . . . . . . 1 Reinforcement 3 | . . . . . 1 2 Assault . | . . . . . . . Garrison . | . . . . . . . Intercept . | . . . . . . . Searches Triggered . | . . . . . . . Construction Impeded . | . . . . . . . Haulers Reinforced . | . . . . . . . Active Scanning Responses . | . . . . . . . Cargo Convoy Interrupts 1 | . . . . . . 1 Stealth | -11 -10 -10 -9 -9 -8 -7 --------- Run | Yrd Mat Min Mat Min Mat Fac Distress Signals 5 | . 1 . . . 3 1 Communications Jammed . | . . . . . . . Distress Signals . | . . . . . . . Times Spotted 72 | . 11 . 5 . 28 28 Peak Tracking Total 12 | . 3 . 4 . 7 12 Tactical Retreats 8 | . 3 . 1 . 4 . Traps | -11 -10 -10 -9 -9 -8 -7 ------- Run | Yrd Mat Min Mat Min Mat Fac Traps Triggered 3 | . 2 . 1 . . . Indirectly . | . . . . . . . Trap Hack Attempts . | . . . . . . . Triggered . | . . . . . . . Disarmed . | . . . . . . . Reprogrammed . | . . . . . . . Reused . | . . . . . . . Traps Extracted . | . . . . . . . Installed . | . . . . . . . Triggered . | . . . . . . . Machines | -11 -10 -10 -9 -9 -8 -7 ---------- Run | Yrd Mat Min Mat Min Mat Fac Machines Disabled 5 | . . . . . . 5 Max in Single Turn 1 | . . . . . . 1 Machines Repaired . | . . . . . . . Machines Dismantled . | . . . . . . . Machines Sabotaged . | . . . . . . . Overloaded Fab Kills . | . . . . . . . Hacking | -11 -10 -10 -9 -9 -8 -7 --------- Run | Yrd Mat Min Mat Min Mat Fac Machines Accessed 4 | . . . 2 . 1 1 Terminals 3 | . . . 2 . 1 . Fabricators . | . . . . . . . Repair Stations 1 | . . . . . . 1 Recycling Units . | . . . . . . . Scanalyzers . | . . . . . . . Garrison Access . | . . . . . . . Total Hacks 7 | . . . 2 . 2 3 Successful 4 | . . . 2 . . 2 Failed 3 | . . . . . 2 1 Catastrophic . | . . . . . . . Database Lockouts . | . . . . . . . Manual . | . . . . . . . Terminals 4 | . . . 2 . 2 . Fabricators . | . . . . . . . Repair Stations 3 | . . . . . . 3 Recycling Units . | . . . . . . . Scanalyzers . | . . . . . . . Garrison Access . | . . . . . . . Terminal Hacks 2 | . . . 2 . . . Hauler Manifests 1 | . . . 1 . . . Zone Layout 1 | . . . 1 . . . Fabricator Hacks . | . . . . . . . Repair Station Hacks 2 | . . . . . . 2 Scan Component 1 | . . . . . . 1 Repair 1 | . . . . . . 1 Recycling Unit Hacks . | . . . . . . . Scanalyzer . | . . . . . . . Garrison Access Hacks . | . . . . . . . Unauthorized Hacks . | . . . . . . . Terminals . | . . . . . . . Fabricators . | . . . . . . . Repair Stations . | . . . . . . . Recycling Units . | . . . . . . . Scanalyzers . | . . . . . . . Garrison Access . | . . . . . . . Data Cores Recovered 1 | . . . 1 . . . Used 1 | . . . 1 . . . Hacking Detections 2 | . . . 1 . 1 . Full Trace Events 1 | . . . . . 1 . Feedback Events . | . . . . . . . Feedback Blocked . | . . . . . . . Robot Schematics Acquired . | . . . . . . . Robots Built . | . . . . . . . Authchips . | . . . . . . . Time . | . . . . . . . Total Robot Build Rating . | . . . . . . . Part Schematics Acquired . | . . . . . . . Parts Built . | . . . . . . . Authchips . | . . . . . . . Time . | . . . . . . . Total Part Build Rating . | . . . . . . . Parts Repaired 1 | . . . . . . 1 Time 38 | . . . . . . 38 Parts Recycled . | . . . . . . . Recycled Matter . | . . . . . . . Retrieved Matter . | . . . . . . . Retrieved Components . | . . . . . . . Parts Scanalyzed . | . . . . . . . Part Schematics Acquired . | . . . . . . . Parts Damaged . | . . . . . . . Bothacking | -11 -10 -10 -9 -9 -8 -7 ------------ Run | Yrd Mat Min Mat Min Mat Fac Used RIF Installer . | . . . . . . . Robots Hacked . | . . . . . . . Non-combat . | . . . . . . . Combat . | . . . . . . . Robot Hacks Applied . | . . . . . . . Relay Couplers Released . | . . . . . . . Fabnet Peak Effective % . | . . . . . . . Robots Rewired . | . . . . . . . Allies Hacked . | . . . . . . . Hacks Repelled . | . . . . . . . Allies | -11 -10 -10 -9 -9 -8 -7 -------- Run | Yrd Mat Min Mat Min Mat Fac Total Allies 2 | . . 2 . . . . Largest Group 2 | . . 2 2 . . . Highest-Rated Group 46 | . . 46 46 . . . Highest-Rated Ally 31 | . . 31 31 . . . Total Orders . | . . . . . . . Ally Attacks 11 | . . . 11 . . . Total Damage 188 | . . . 188 . . . Kills 3 | . . . 3 . . . Allies Corrupted . | . . . . . . . Allies Melted . | . . . . . . . Intel | -11 -10 -10 -9 -9 -8 -7 ------- Run | Yrd Mat Min Mat Min Mat Fac Robot Analysis Total . | . . . . . . . Derelict Logs Recovered 1 | . . 1 . . . . Drone Launches . | . . . . . . . Drone Recoveries . | . . . . . . . Exploration | -11 -10 -10 -9 -9 -8 -7 ------------- Run | Yrd Mat Min Mat Min Mat Fac Turns Passed 3108 | 71 274 138 419 74 739 1393 Spaces Moved 1679 | 56 157 112 306 62 383 603 Core 17 | 16 . . . . . 1 Treads 366 | . . . . . . 366 Legs 1296 | 40 157 112 306 62 383 236 Wheels . | . . . . . . . Hover . | . . . . . . . Flight . | . . . . . . . Fastest Speed 50 | 50 120 120 120 120 120 120 Average Speed 144 | 100 120 120 120 120 120 190 Slowest Speed 1350 | 120 190 120 120 120 120 1350 Overloaded Moves . | . . . . . . . Propulsion Burnouts . | . . . . . . . Robots Hopped . | . . . . . . . Cave-ins Triggered . | . . . . . . . Exploration Rate (%) 20 | 4 32 19 27 23 25 16 Regions Visited 6 Branch Regions 2 Pre-discovered Areas 1 | . . 1 . . . . Known Exits Taken . | . . . . . . . Unknown Exits Taken 6 | 1 1 1 1 1 1 . Scrap Searched 2 | . . 1 . 1 . . Spaces Dug . | . . . . . . . Terrain Destroyed 39 | . . . . . . 39 Melee . | . . . . . . . Projectile 8 | . . . . . . 8 AOE 31 | . . . . . . 31 Terrain Rammed . | . . . . . . . Walls Destroyed . | . . . . . . . Machines Disabled . | . . . . . . . Actions | -11 -10 -10 -9 -9 -8 -7 --------- Run | Yrd Mat Min Mat Min Mat Fac Total 2092 | 71 209 115 344 61 547 745 Wait 107 | . 12 4 . . 49 42 Move 1673 | 55 156 111 305 61 382 603 Hop . | . . . . . . . Pick Up 63 | 10 10 . 9 . 20 14 Fast Attach 6 | . 2 . 2 . 2 . Attach 27 | 6 . . 1 . 3 17 Detach . | . . . . . . . Swap 32 | . 3 . 8 . 13 8 Drop 40 | . 6 . 10 . 17 7 Fire 144 | . 20 . 9 . 61 54 Melee . | . . . . . . . Ram . | . . . . . . . Kick . | . . . . . . . Crush . | . . . . . . . Escape Stasis . | . . . . . . . Rewire . | . . . . . . . Trap . | . . . . . . . Miscellaneous . | . . . . . . . Route ------- -11/Scrapyard -10/Materials -10/Mines -9/Materials -9/Mines -8/Materials -7/Factory History --------- Turn | Location | Event 3 | -11/Scrapyard | Discovered new exit (range 15) 72 | -11/Scrapyard | Entered Materials 268 | -10/Materials | Discovered new exit (range 15) 340 | -10/Materials | Build established: Mutant 346 | -10/Materials | Entered Mines 472 | -10/Mines | Discovered new exit (range 10) 484 | -10/Mines | Entered Materials 484 | -9/Materials | Accompanied by 2 allies 484 | -9/Materials | Evolved 2 slots: Propulsion x2 489 | -9/Materials | Led the pair of lost Derelicts to an unsafe place 887 | -9/Materials | Discovered new exit (range 14) 903 | -9/Materials | Entered Mines 904 | -9/Mines | Assembled infested the area 929 | -9/Mines | Met a Derelict bent on vengeance 963 | -9/Mines | Discovered new exit (range 10) 977 | -9/Mines | Entered Materials 977 | -8/Materials | Evolved 2 slots: Utility x2 1063 | -8/Materials | Build established: Scavenger-Mutant 1706 | -8/Materials | Discovered new exit (range 7) 1716 | -8/Materials | Entered Factory 1716 | -7/Factory | Evolved 2 slots: Utility x2 1890 | -7/Factory | Lost 7 parts (1p3n1u2w) 1912 | -7/Factory | Found Prototype Device 2403 | -7/Factory | Repaired Reaction Control System 2592 | -7/Factory | Build established: Mutant 3073 | -7/Factory | Cargo convoy interrupted 3087 | -7/Factory | Core integrity fell below 50% 3096 | -7/Factory | Core integrity fell below 20% 3109 | -7/Factory | Destroyed by X-67 Chaingunner with Heavy Machine Gun Last Messages --------------- 03096_ U-05 Engineer lays Concrete. 03097_ Aluminum Leg destroyed. 03097_ U-05 Engineer builds a Wall. 03097_ U-05 Engineer builds a Door. 03098_ R-06 Scavenger collects Imp. Cooling System. 03098_ U-05 Engineer lays Concrete. 03098_ U-05 Engineer builds a Wall. 03099_ Adv. Assault Cannon destroyed. 03099_ R-06 Scavenger collects Shock Rifle. 03099_ X-67 Chaingunner IFF system glitched. 03099_ X-67 Chaingunner destroyed. 03099_ U-05 Engineer lays Concrete. 03101_ R-06 Scavenger collects Assault Rifle. 03101_ U-05 Engineer lays Concrete. 03102_ The unstable cave ceiling collapses. 03102_ 23 Matter crushed. 03102_ Gatling Laser destroyed. 03104_ Slug penetrates Earth. 03108_ R-06 Scavenger collects Lrg. Matter Pod. Map ----- +----------------------------------------------------+ | ?????????????????????????????????????????????????? | | ?????????????????????????????????????????????????? | | ?????????????????????????????????????????????????? | | ??????????????????????????? ????????????????????? | | ??????????????????????????# ??? #??????????????? | | ??????????????????????????# ??? #??????????????? | | ???????????????????????#### ??? #??????????????? | | ???????????????????????# "?? #??????????????? | | ???????????????????????# #??????????????? | | ??????????????????????## """ #??????????????? | | ??????????????????????? """ #??????????????? | | ???????????????????????? """ #??????????????? | | ????????????????????????? #??????????????? | | ?????????????????????????? ???????????????? | | ???????????????????????????# #????????????????? | | ???????????????????######### #????????????????? | | ???????????????????# # #????????????????? | | ???????????????????# # ###########??????? | | ???????????????????# + + #??????? | | ???????????????????# # # """" #??????? | | ???????????????????# # # """" #??????? | | ???????????????????# # # """" +??????? | | ???????????????#####+####### # """" #??????? | | ???????????????# # ### # """" #??????? | | ???????????????# """ i## # """" #??????? | | ???????????????# "" @ # # = #??????? | | ???????????????# "" #x# ########+## #????? | | ???????????????# """ h rr #????? | | ???????????????# %% =######## ####????? | | ???????????????# """ %# #"###### #???????? | | ???????????????# "" / #???????? | | ???????????????#? "" # #???????? | | ????????????????? """" # ####???????? | | ???????????#????? # """ "%" #??????????? | | ???????????! #######+## %%" """ #??????????? | | ??????????! ^ "" ##?????????? | | ??????????! ^ ?????? | | ?????????? ^ "%""" ####???????? | | ??????????/! ^ % %" """ #?????????? | | ??????????! ^ "" """ #?????????? | | ?????????/! ########## #?????????? | | ????????? ???????#### %""" #?????????? | | ?????????? ???????# """ #?????????? | | ????????? ???????# """ #?????????? | | ?????????? ???????# "F"" #?????????? | | ?????????? ???????# """" #?????????? | | ??????????#/######### ###########? ????????????? | | ??????????# """"""" + + #??????????????? | | ??????????# """"""" # # "" #??????????????? | | ??????????# """"""" # #??F #??????????????? | +----------------------------------------------------+ Best States ------------- Heat Dissipation 53 Energy Generation 18 Energy Capacity 290 Matter Stores 400 Matter Capacity 400 Sight Range 16 Robot Scan Range 15 Terrain Scan Density 10 ECM Strength 1 Evasion (%) 55 Targeting Accuracy 8 Recoil Reduction 4 Offensive Hacking 10 Item Schematics ----------------- None Robot Schematics ------------------ None Fabricated ------------ Nothing Alien Tech Used ----------------- None Achievements -------------- None Challenges ------------ None Game ------ Seed WeaponDecoderExoskeleton Manual? 0 Play Time 00:30:05 Cumulative 8.7 hours Start 2024.05.23 @ 17:53:52 End 2024.05.23 @ 18:24:39 Sessions 1 Manual Loads 0 Difficulty Rogue Special Mode None Game No. 15 Rogue 15 Adventurer 0 Explorer 0 Win Type - Total 0 Types 0/0/0/0/0/0/0/0/0 Lore% 12 Gallery% 18 Achievement% 13 Wizard Run 0 Options --------- Layout 1 ASCII 0 Keyboard 0 Movement Mouse Keybinds 0 Fullscreen 2 Font 24/Smallcaps Map View 50x35 Zoom Use 0% Tactical HUD 1 Map Filters NONE Filters NONE Steam 1 RUN: 548cd2fa-a20b-4b76-a220-feb6958433c3